bitfinex/quotes_ETHUSD_20260125
["timestamp","ask_amount","ask_price","bid_price","bid_amount"]
[1769333199936,0.81854052,2934.7,2934.1,0.002]
[1769333200158,0.001,2934.5,2934.1,0.002]
[1769333203566,0.001,2934.5,2934.1,8.02957176]
[1769333207050,0.001,2934.5,2934.1,0.002]
[1769333215270,7.53761437,2934.4,2934.1,0.002]
[1769333215449,0.75386144,2934.3,2934.1,0.002]
[1769333216050,0.001,2934.5,2934.1,0.002]
[1769333224084,0.001,2934.5,2934.3,0.002]
[1769333234171,0.001,2934.5,2934.1,0.002]
[1769333237111,0.001,2934.5,2934.1,7.3724908]
[1769333237483,0.001,2934.5,2934.3,0.002]
[1769333249699,7.71190971,2934.5,2934.1,0.002]
[1769333250000,0.001,2934.3,2934.1,0.002]
[1769333251411,0.001,2934.3,2934.1,7.3724908]
[1769333252210,0.001,2934.3,2934.1,0.002]
[1769333256442,0.001,2934.3,2933.7,7.19428923]
[1769333256605,0.001,2934.3,2933.8,0.85211636]
[1769333256805,0.001,2934.3,2933.7,8.04643432]
[1769333257006,0.001,2934.3,2933.8,0.85212025]
[1769333257206,0.001,2934.3,2933.7,7.19428923]
[1769333259337,0.001,2934.3,2933.9,7.19228923]
[1769333259546,7.23859706,2933.9,2932.7,0.002]
[1769333259844,7.23859706,2933.9,2932.5,0.002]
[1769333259845,0.08192245,2932.7,2932.5,0.002]
[1769333260341,0.08192245,2932.9,2932.5,0.002]
[1769333261044,0.08192245,2932.9,2932.5,0.85449861]
[1769333261244,0.08192245,2933.1,2932.6,0.85248584]
[1769333261442,0.08192245,2933.1,2932.6,8.04477507]
[1769333261913,0.08192245,2933.1,2932.7,1.14567329]
[1769333262316,0.56004443,2933.5,2932.7,1.14567329]
[1769333262578,0.08192245,2933.3,2932.7,8.33796252]
[1769333263345,0.08192245,2933.3,2932.7,9.1904052]
[1769333263543,0.08192245,2933.3,2932.8,7.19228923]
[1769333263715,0.08192245,2933.3,2932.9,8.11132975]
[1769333265235,0.00681286,2933.3,2932.9,8.96371789]
[1769333266117,0.08192245,2933.5,2932.9,8.96371789]
[1769333266950,0.08192245,2933.3,2932.9,8.96371789]
[1769333267142,0.08192245,2933.5,2932.9,8.96371789]
[1769333267346,0.08192245,2933.5,2933.0,8.08866102]
[1769333268434,0.08192245,2933.5,2933.0,0.89637179]
[1769333269256,0.08192245,2933.5,2933.1,0.85234052]
[1769333269425,0.08192245,2933.5,2933.0,1.74873956]
[1769333271232,0.001,2934.1,2933.0,8.94102879]
[1769333271458,0.08192245,2933.8,2933.1,0.89410288]
[1769333273132,7.23859706,2933.9,2933.2,0.85231146]
[1769333274377,0.08192245,2934.0,2933.2,8.04660069]
[1769333274976,7.32051951,2934.0,2933.2,8.04660069]
[1769333275145,0.73215195,2933.9,2933.2,8.04660069]
[1769333275755,0.73215195,2933.9,2933.2,0.85431146]
[1769333276581,0.73215195,2933.9,2933.2,8.04660069]
[1769333277576,0.08192245,2934.0,2933.2,8.04660069]
[1769333286480,0.001,2933.8,2933.2,8.04660069]
[1769333291398,0.001,2934.1,2933.2,8.04660069]
[1769333297601,7.40784724,2934.3,2933.3,6.89652563]
[1769333297909,7.40784724,2934.3,2933.4,7.74877898]
[1769333298112,0.74078472,2934.2,2933.4,7.74877898]
[1769333298605,0.74078472,2934.2,2933.4,7.75077898]
[1769333298775,0.001,2933.9,2933.4,7.75077898]
[1769333298981,0.08292245,2934.3,2933.5,6.89652563]
[1769333299582,7.48544045,2934.3,2933.5,6.89652563]
[1769333299784,8.24217674,2934.3,2933.5,6.89652563]
[1769333299981,8.24217674,2934.3,2933.6,0.85219525]
[1769333302410,8.24217674,2934.3,2933.4,0.002]
[1769333303207,8.24217674,2934.3,2933.4,6.89852563]
[1769333305313,8.24217674,2934.3,2933.5,0.8522243]
[1769333305512,0.82421767,2934.2,2933.5,7.74874993]
[1769333305812,0.08292245,2934.3,2933.5,7.74874993]
[1769333306012,7.48544045,2934.3,2933.5,7.74874993]
[1769333307825,0.08292245,2934.3,2933.5,7.74874993]
[1769333310522,0.08292245,2934.3,2933.7,0.002]
[1769333311017,0.001,2934.1,2933.7,0.002]
[1769333311194,0.08292245,2934.3,2933.7,0.002]
[1769333311403,0.74854404,2934.2,2933.7,0.002]
[1769333314037,0.23283676,2934.2,2933.7,0.002]
[1769333314332,0.08292245,2934.3,2933.7,0.002]
[1769333315135,0.001,2934.3,2933.7,0.002]
[1769333316025,0.001,2934.3,2933.7,0.8541662]
[1769333316530,1e-08,2934.0,2933.7,0.8541662]
[1769333317028,6.83498417,2934.2,2933.7,0.8541662]
[1769333317205,7.51858259,2934.2,2933.7,0.8541662]
[1769333318029,7.51858259,2934.2,2933.7,0.002]
[1769333318213,0.76552087,2934.2,2933.7,0.002]
[1769333322431,0.76552087,2934.2,2933.9,0.002]
[1769333322609,0.001,2934.1,2933.9,0.002]
[1769333322813,0.76552087,2934.2,2933.9,0.002]
[1769333325941,0.08192245,2934.2,2933.9,0.002]
[1769333328644,0.08192245,2934.2,2933.7,0.002]
[1769333328645,0.08192245,2934.0,2933.7,0.002]
[1769333328816,6.75306172,2934.1,2933.7,0.002]
[1769333329212,0.08192245,2934.2,2933.7,0.002]
[1769333329411,0.08192245,2934.0,2933.7,0.002]
[1769333329649,7.51858259,2934.2,2933.7,0.002]
[1769333330730,7.43666014,2934.2,2933.7,0.002]
[1769333330936,0.68359842,2934.2,2933.7,7.09581677]
[1769333331117,0.001,2934.3,2933.7,7.09581677]
[1769333332734,0.001,2934.3,2933.7,7.94796711]
[1769333333346,0.001,2934.3,2933.7,0.85415034]
[1769333333531,0.001,2934.3,2933.7,0.002]
[1769333333739,0.001,2934.3,2933.7,0.8541542]
[1769333334442,0.68459842,2934.3,2933.9,0.002]
[1769333334744,0.001,2934.0,2933.9,0.002]
[1769333334952,0.68459842,2934.3,2933.9,0.002]
[1769333336753,0.08192245,2934.2,2933.9,0.002]
[1769333343433,0.001,2934.3,2933.9,0.002]
[1769333346362,0.001,2934.1,2933.9,0.002]
[1769333346563,0.001,2934.3,2933.9,0.002]
[1769333348466,6.8078768,2934.2,2933.5,3.41086709]
[1769333348656,6.8078768,2934.2,2933.4,0.002]
[1769333349048,6.72595435,2934.2,2933.4,0.002]
[1769333349553,6.72595435,2934.8,2933.4,0.002]
[1769333349742,6.72595435,2934.8,2933.4,6.93220547]
[1769333349946,7.40674203,2934.8,2933.5,7.62342602]
[1769333350639,7.40674203,2934.8,2933.6,0.85219525]
[1769333350836,6.72595435,2935.0,2933.6,7.78240072]
[1769333351235,6.72595435,2935.8,2933.6,7.78240072]
[1769333353446,6.72595435,2935.6,2933.6,7.78240072]
[1769333357838,6.72595435,2935.6,2933.9,6.48189352]
[1769333358070,6.37258588,2935.4,2934.1,6.48189352]
[1769333359261,6.37258588,2935.4,2934.3,6.48189352]
[1769333361782,6.37258588,2935.4,2934.4,7.33385644]
[1769333370074,0.001,2935.2,2934.4,7.33385644]
[1769333370255,6.37258588,2935.4,2934.4,7.33385644]
[1769333370256,6.37258588,2935.4,2934.5,6.48189352]
[1769333370457,6.37258588,2935.4,2934.6,0.73338564]
[1769333372074,6.37258588,2935.4,2934.4,0.85196292]
[1769333372302,6.37258588,2935.4,2934.4,6.48189352]
[1769333373894,0.001,2935.4,2934.4,6.48189352]
[1769333374098,6.48023516,2936.2,2934.4,6.99330189]
[1769333374394,7.12825868,2936.1,2934.6,6.99330189]
[1769333374570,7.12825868,2936.1,2934.8,6.99330189]
[1769333376390,6.48023516,2937.1,2935.3,6.99330189]
[1769333376696,0.26311563,2937.7,2935.5,6.99330189]
[1769333376697,6.48023516,2936.9,2935.5,6.99330189]
[1769333377002,6.48023516,2936.7,2935.4,0.85167268]
[1769333377179,6.48023516,2936.5,2935.4,0.85167268]
[1769333378391,6.48023516,2936.5,2935.4,7.84497457]
[1769333381611,6.48023516,2936.5,2935.3,0.85167953]
[1769333381778,6.48023516,2936.5,2935.4,0.85166441]
[1769333381976,6.48023516,2936.5,2935.3,0.85168492]
[1769333382196,6.48023516,2936.3,2935.3,0.85169584]
[1769333382396,6.48123516,2936.3,2935.3,0.85169584]
[1769333382595,6.48123516,2936.3,2935.4,0.85166426]
[1769333382799,6.48123516,2936.3,2935.2,0.85173071]
[1769333386288,6.48123516,2936.3,2935.2,7.8450326]
[1769333386493,7.20146049,2936.3,2935.3,1.12519555]
[1769333387626,6.48023516,2935.7,2935.0,0.002]
[1769333394531,6.48023516,2935.7,2935.2,0.002]
[1769333394727,0.001,2935.5,2935.2,0.002]
[1769333400538,0.72122533,2936.3,2935.2,0.002]
[1769333400539,6.48023516,2936.2,2935.2,0.002]
[1769333401639,6.48023516,2936.2,2935.2,6.99530189]
[1769333401935,6.48023516,2936.2,2935.2,0.002]
[1769333403936,6.72520712,2936.0,2935.2,0.002]
[1769333406243,0.001,2935.8,2935.2,0.002]
[1769333406421,6.72520712,2935.7,2935.2,0.002]
[1769333406810,7.39782783,2935.7,2935.2,0.002]
[1769333411055,7.39782783,2935.7,2935.0,0.002]
[1769333411237,7.39782783,2935.7,2934.8,0.002]
[1769333413538,7.47975028,2935.7,2934.8,0.002]
[1769333415567,7.39782783,2935.7,2934.8,0.002]
[1769333415712,6.69370423,2935.5,2934.8,0.002]
[1769333417620,6.69370423,2935.5,2935.0,0.002]
[1769333419945,6.61178178,2935.5,2935.0,0.002]
[1769333427968,0.08192245,2935.3,2934.8,0.002]
[1769333428157,6.61178178,2935.2,2934.8,0.002]
[1769333428466,7.2811522,2935.2,2934.8,0.002]
[1769333440452,7.2811522,2935.2,2935.0,0.002]
[1769333442669,7.2811522,2935.2,2934.8,0.002]
[1769333446054,7.2811522,2935.2,2934.0,7.18604824]
[1769333450673,7.2811522,2935.2,2934.0,8.03812385]
[1769333450975,7.2811522,2935.2,2934.2,6.53765889]
[1769333452284,7.2811522,2935.2,2934.2,6.53965889]
[1769333452456,0.001,2935.0,2934.2,6.53965889]
[1769333459468,6.42940532,2935.0,2934.2,6.53965889]
[1769333464594,6.42940532,2935.0,2934.2,6.5362508]
[1769333464794,6.42940532,2935.0,2934.2,7.30454135]
[1769333472202,6.42940532,2935.0,2934.2,0.77029055]
[1769333472500,6.42940532,2935.0,2934.2,0.002]
[1769333476175,6.42940532,2935.0,2934.2,6.63080147]
[1769333476176,0.001,2934.8,2934.2,6.63080147]
[1769333480482,0.001,2935.0,2934.2,7.48281446]
[1769333480819,6.32,2936.2,2934.2,7.48281446]
[1769333480820,6.66397188,2935.9,2934.3,7.09877171]
[1769333481914,6.66397188,2935.9,2934.3,6.62880147]
[1769333482102,6.66397188,2935.9,2934.5,6.62880147]
[1769333482293,6.66397188,2935.9,2934.5,7.34280147]
[1769333482488,6.66397188,2936.1,2934.7,6.62880147]
[1769333484214,0.79592245,2936.6,2934.7,6.62880147]
[1769333484215,6.66497188,2936.3,2934.7,6.62880147]
[1769333484521,6.66497188,2936.3,2934.9,6.62880147]
[1769333484698,6.66497188,2936.3,2935.1,6.62880147]
[1769333486722,6.66497188,2936.3,2935.2,0.85173071]
[1769333486918,6.66497188,2936.3,2935.3,6.62880147]
[1769333487520,0.001,2936.3,2935.3,6.62880147]
[1769333487721,0.001,2936.3,2935.5,6.62880147]
[1769333488102,0.001,2935.6,2935.5,6.62880147]
[1769333488408,0.001,2936.3,2935.5,6.62880147]
[1769333488794,0.001,2936.3,2935.4,0.74805322]
[1769333488795,6.66497188,2936.3,2935.4,0.74805322]
[1769333489909,6.66497188,2936.3,2935.4,7.37685469]
[1769333490109,6.66497188,2936.3,2935.5,0.82285523]
[1769333492291,6.66497188,2936.3,2935.5,1.67449091]
[1769333492492,6.66497188,2936.3,2935.5,7.4516567]
[1769333496321,0.001,2936.3,2935.6,6.07357268]
[1769333497820,0.001,2936.3,2935.6,6.92518656]
[1769333498026,0.001,2936.3,2935.7,6.84837686]
[1769333500238,0.001,2936.1,2935.7,6.84837686]
[1769333507925,0.001,2936.1,2935.7,0.77480418]
[1769333508243,6.24075786,2936.1,2935.4,0.85165568]
[1769333510449,6.24075786,2936.1,2935.3,0.85170169]
[1769333511649,6.24075786,2936.1,2935.4,0.713]
[1769333511952,6.24075786,2936.1,2935.5,0.002]
[1769333519773,0.001,2936.1,2935.5,0.002]
[1769333519955,0.001,2936.1,2935.6,0.76402347]
[1769333522086,0.001,2936.1,2935.6,6.83759615]
[1769333524263,0.001,2935.9,2935.6,6.83759615]
[1769333526164,0.001,2935.9,2935.6,7.68920806]
[1769333528563,0.001,2935.9,2935.6,0.76402347]
[1769333535078,0.001,2935.9,2935.6,1.61563153]
[1769333536279,0.001,2935.7,2935.6,0.76402347]
[1769333536579,0.001,2935.9,2935.6,0.76402347]
[1769333537854,0.001,2935.9,2935.6,1.61563201]
[1769333538182,0.001,2935.9,2935.6,0.76402347]
[1769333538602,0.001,2935.9,2935.6,1.61562625]
[1769333546495,0.001,2936.1,2935.6,0.76402347]
[1769333546672,0.001,2936.1,2935.5,0.85361991]
[1769333546673,5.923241,2936.0,2935.5,0.002]
[1769333546879,5.923241,2936.0,2935.3,0.002]
[1769333547795,0.001,2935.7,2935.3,0.002]
[1769333547993,5.924241,2935.7,2935.3,0.002]
[1769333549217,5.924241,2935.7,2935.2,0.713]
[1769333549509,5.624241,2935.7,2935.2,0.713]
[1769333550083,3.69096212,2937.3,2935.3,0.85170169]
[1769333550287,5.923241,2937.1,2935.5,5.70607968]
[1769333550874,5.923241,2937.1,2935.6,0.85161466]
[1769333552011,5.923241,2937.1,2935.6,6.55769434]
[1769333554610,5.71387926,2936.9,2935.4,0.49715085]
[1769333554799,5.71387926,2936.9,2935.3,0.85168044]
[1769333554980,5.71387926,2936.9,2935.4,0.85167215]
[1769333555706,5.71387926,2936.9,2935.6,6.54963207]
[1769333560096,5.71387926,2936.9,2935.6,6.55163207]
[1769333560425,5.71487926,2936.7,2935.7,6.69384017]
[1769333567525,5.71487926,2936.7,2935.7,7.54542457]
[1769333569225,5.71487926,2936.7,2935.7,6.69384017]
[1769333572507,5.71487926,2936.7,2935.7,7.54542241]
[1769333573835,5.71487926,2936.7,2935.7,6.69384017]
[1769333574040,5.71487926,2936.7,2935.8,0.7547433]
[1769333579744,5.71487926,2936.7,2935.8,0.7547433]
[1769333583416,5.71487926,2936.7,2935.8,6.68908988]
[1769333583620,5.71487926,2936.7,2935.9,0.002]
[1769333583948,0.001,2936.5,2935.9,0.002]
[1769333585351,0.001,2936.5,2935.9,5.93634658]
[1769333585655,0.001,2936.5,2936.0,0.75426453]
[1769333588348,0.714,2936.5,2936.0,0.75426453]
[1769333593154,0.714,2936.5,2935.9,0.002]
[1769333593648,6.56122163,2936.5,2935.9,0.002]
[1769333595951,0.714,2936.5,2935.9,0.002]
[1769333596624,0.002,2936.3,2935.9,0.002]
[1769333608549,0.002,2936.3,2935.9,5.97769281]
[1769333608754,0.002,2936.3,2936.0,0.59776928]
[1769333609952,0.002,2936.3,2936.1,0.001]
[1769333617385,6.44922118,2937.0,2936.2,1.30488459]
[1769333617684,6.44922118,2937.0,2936.1,0.001]
[1769333617859,7.0941433,2937.0,2936.1,0.001]
[1769333622784,7.0941433,2937.0,2936.3,0.001]
[1769333623282,0.002,2936.8,2936.3,0.001]
[1769333627585,0.715,2936.8,2936.3,0.001]
[1769333631092,6.45122118,2936.8,2936.3,0.001]
[1769333631388,7.16103551,2936.8,2936.3,0.001]
[1769333636895,0.002,2936.6,2936.3,0.001]
[1769333649920,0.002,2936.4,2936.3,0.001]
[1769333672229,0.002,2936.6,2936.3,0.001]
[1769333685987,0.002,2936.4,2936.3,0.001]
[1769333703016,0.715,2936.4,2936.3,0.001]
[1769333704493,1.32488974,2936.4,2936.1,0.001]
[1769333705200,6.09689739,2936.4,2936.1,0.001]
[1769333705676,6.09689739,2936.4,2935.6,0.002]
[1769333706493,5.88189739,2936.2,2935.6,0.002]
[1769333706693,5.38189739,2936.2,2935.6,0.002]
[1769333707128,5.38189739,2936.2,2935.4,0.002]
[1769333707292,5.38189739,2936.0,2935.4,0.002]
[1769333709298,5.38189739,2936.0,2935.8,0.002]
[1769333709499,5.38189739,2936.0,2935.5,0.002]
[1769333710920,5.38189739,2935.8,2935.5,0.002]
[1769333711620,5.88189739,2935.6,2935.5,0.002]
[1769333711820,6.68308713,2935.6,2935.5,0.002]
[1769333712117,6.68308713,2935.6,2934.6,5.47013404]
[1769333716531,0.5,2935.4,2934.6,5.47013404]
[1769333718508,6.19280274,2935.4,2934.6,5.47013404]
[1769333718732,6.19280274,2935.4,2934.5,0.002]
[1769333718931,6.94220199,2935.4,2934.5,0.002]
[1769333719425,6.94220199,2935.4,2934.5,5.49704798]
[1769333720840,6.94220199,2935.4,2934.8,0.002]
[1769333725913,5.69280274,2935.3,2934.5,0.002]
[1769333726129,5.69280274,2935.1,2934.2,0.002]
[1769333726334,5.69280274,2934.9,2934.1,0.00059044]
[1769333726530,0.714,2934.8,2934.1,0.00059044]
[1769333726735,0.714,2934.8,2934.1,5.49563842]
[1769333728957,0.714,2934.8,2934.1,0.00059044]
[1769333729615,5.69280274,2934.9,2934.1,0.00059044]
[1769333729815,0.56928027,2935.0,2934.2,6.04481182]
[1769333729816,0.714,2934.8,2934.2,6.04481182]
[1769333732753,0.714,2934.8,2934.3,0.002]
[1769333744665,0.001,2934.6,2934.3,0.002]
[1769333746665,0.001,2934.6,2934.3,5.69512748]
[1769333746666,0.714,2934.5,2934.3,5.69512748]
[1769333746863,0.001,2934.6,2934.4,0.56951275]
[1769333747066,0.714,2934.5,2934.4,0.56951275]
[1769333748279,1.214,2934.5,2934.4,0.56951275]
[1769333753694,1.214,2934.5,2934.3,0.002]
[1769333762650,1.214,2934.5,2934.1,0.00059044]
[1769333767951,1.214,2934.5,2934.3,0.002]
[1769333785679,6.68244923,2934.5,2933.8,0.002]
[1769333785879,6.13679415,2934.4,2933.8,0.002]
[1769333786187,7.15973705,2934.4,2933.8,0.002]
[1769333786478,6.13679415,2934.4,2933.8,0.002]
[1769333786683,0.13639238,2934.3,2933.8,0.002]
[1769333788594,5.60484161,2934.3,2933.8,0.002]
[1769333788886,0.62731865,2934.2,2933.8,0.002]
[1769333790177,6.09576788,2934.2,2933.8,0.002]
[1769333790495,6.23216073,2934.2,2933.8,0.002]
[1769333791489,6.09576788,2934.2,2933.8,0.002]
[1769333791690,5.60486487,2934.1,2934.0,0.002]
[1769333791987,6.31328356,2934.1,2933.6,0.002]
[1769333792392,6.17686792,2934.1,2933.4,0.002]
[1769333792584,5.46844923,2933.9,2933.4,0.002]
[1769333793296,0.13641564,2933.8,2933.4,0.002]
[1769333793523,0.714,2933.7,2933.4,0.002]
[1769333794816,6.65315594,2933.7,2933.4,0.002]
[1769333795116,0.67895716,2933.6,2933.4,0.002]
[1769333795319,0.67540282,2933.6,2933.4,0.002]
[1769333795505,0.85041564,2933.7,2933.4,0.002]
[1769333797612,0.13641564,2933.7,2933.4,0.002]
[1769333797787,0.85182418,2934.9,2933.4,5.64705792]
[1769333797994,0.714,2934.2,2933.5,5.64505792]
[1769333798822,0.714,2934.2,2933.7,5.64505792]
[1769333798995,0.714,2934.2,2933.7,6.21297249]
[1769333799193,0.714,2934.1,2933.7,6.21297249]
[1769333800525,0.714,2934.0,2933.7,6.21297249]
[1769333801817,0.001,2934.6,2933.7,6.21297249]
[1769333802023,0.714,2934.2,2933.7,6.21297249]
[1769333803294,0.714,2934.2,2933.7,5.64505792]
[1769333803923,5.93915594,2934.5,2933.7,5.64505792]
[1769333804129,0.001,2933.9,2933.7,5.64505792]
[1769333809928,0.001,2933.9,2933.6,0.002]
[1769333816509,0.001,2933.9,2933.8,0.002]
[1769333818561,0.715,2933.9,2933.8,0.002]
[1769333820030,6.65415594,2933.9,2933.4,0.002]
[1769333820644,0.715,2933.9,2933.4,0.002]
[1769333825758,6.43739217,2933.9,2933.4,0.002]
[1769333825971,7.08113139,2933.9,2933.4,0.002]
[1769333828762,7.08113139,2933.9,2933.6,0.002]
[1769333832568,1.35873922,2933.9,2933.6,0.002]
[1769333832768,0.715,2933.9,2933.6,0.002]
[1769333833572,0.714,2933.8,2933.6,0.002]
[1769333838071,0.714,2933.7,2933.6,5.60777335]
[1769333838238,0.001,2933.9,2933.6,5.60777335]
[1769333838440,0.714,2934.0,2933.6,5.60777335]
[1769333840279,0.001,2933.7,2933.6,5.60777335]
[1769333840461,0.001,2933.7,2933.6,6.1721597]
[1769333846679,0.001,2933.7,2933.6,0.56638635]
[1769333846864,0.001,2933.7,2933.6,0.002]
[1769333858193,0.714,2934.1,2933.6,0.002]
[1769333859719,0.714,2934.0,2933.6,0.002]
[1769333859880,0.001,2934.3,2933.6,0.002]
[1769333860082,0.714,2934.1,2933.6,0.002]
[1769333860277,0.714,2934.1,2933.6,0.61109565]
[1769333861007,0.001,2934.3,2933.6,7.54824134]
[1769333862512,0.001,2934.6,2933.7,6.0849565]
[1769333862689,0.001,2934.6,2933.7,6.11904314]
[1769333863110,0.001,2934.6,2933.9,6.0849565]
[1769333863417,0.001,2934.6,2934.1,6.0849565]
[1769333874133,0.001,2934.6,2934.1,6.93699614]
[1769333874427,0.001,2934.6,2934.3,6.0849565]
[1769333875231,0.001,2934.6,2934.3,6.0869565]
[1769333875403,0.001,2934.4,2934.3,6.0869565]
[1769333875604,0.714,2935.1,2934.3,6.78405394]
[1769333875911,0.714,2935.1,2934.4,0.03407851]
[1769333876713,0.001,2936.2,2934.7,6.0849565]
[1769333877018,5.76238859,2936.2,2934.9,6.0849565]
[1769333877227,5.76238859,2936.2,2935.3,6.0849565]
[1769333877904,0.001,2936.2,2935.3,6.0849565]
[1769333879336,0.001,2936.2,2935.4,6.93662918]
[1769333881742,1.02217611,2937.4,2935.8,6.0849565]
[1769333882038,1.02217611,2937.4,2936.0,6.0849565]
[1769333882205,3.75716327,2937.7,2936.0,6.84599401]
[1769333882641,3.75716327,2937.7,2936.1,1.0217479]
[1769333882942,0.002,2937.8,2936.2,6.0849565]
[1769333883137,0.002,2937.8,2936.4,5.85309348]
[1769333883138,0.37774752,2937.7,2936.4,5.85309348]
[1769333883342,0.002,2937.8,2936.4,5.85309348]
[1769333883638,0.002,2937.8,2936.6,5.85309348]
[1769333884831,3.79548904,2937.8,2936.6,5.85309348]
[1769333885709,3.79548904,2937.8,2936.8,5.85309348]
[1769333886007,0.4509489,2937.7,2936.8,5.85309348]
[1769333887251,0.001,2937.5,2936.8,5.85309348]
[1769333887749,3.81209761,2937.5,2936.4,6.70446994]
[1769333889520,3.81209761,2937.5,2936.4,5.85309348]
[1769333889719,3.81209761,2937.5,2936.4,6.70447354]
[1769333889947,4.21824909,2937.4,2936.4,6.70447354]
[1769333890148,4.21824909,2937.4,2936.4,5.85309348]
[1769333890320,4.21824909,2937.4,2936.4,6.7044704]
[1769333890520,4.21824909,2937.4,2936.4,5.85309348]
[1769333890847,4.21824909,2937.4,2936.4,6.70446898]
[1769333891148,4.26733454,2937.3,2936.4,6.70447467]
[1769333891315,3.84540963,2937.3,2936.4,6.70447467]
[1769333891521,3.84540963,2937.3,2936.4,5.85309348]
[1769333899058,3.84540963,2937.3,2936.6,0.001]
[1769333902486,3.93982158,2937.5,2936.6,5.93655917]
[1769333902678,0.39398216,2937.4,2936.6,5.93655917]
[1769333906288,0.001,2937.5,2936.6,5.93655917]
[1769333907891,0.001,2937.5,2936.6,6.78788128]
[1769333908075,0.713,2937.4,2936.6,6.78788128]
[1769333909080,0.713,2937.4,2936.8,5.93555917]
[1769333910570,0.713,2937.4,2937.0,5.93555917]
[1769333911993,0.002,2937.2,2937.0,5.93555917]
[1769333912166,0.715,2937.4,2937.0,5.93555917]
[1769333912494,0.715,2937.4,2937.0,6.61433886]
[1769333914802,0.713,2937.6,2937.2,5.55891089]
[1769333919513,0.713,2937.6,2937.2,6.41005665]
[1769333920696,0.713,2937.6,2937.2,5.55891089]
[1769333920893,0.713,2937.6,2937.3,6.19991793]
[1769333925122,0.713,2937.6,2937.4,0.001]
[1769333933545,0.713,2937.6,2937.4,5.55991089]
[1769333933837,0.713,2937.6,2937.4,0.001]
[1769333947369,0.713,2937.6,2937.4,6.10160849]
[1769333948863,0.713,2937.6,2937.4,0.001]
[1769333955988,0.713,2937.6,2936.7,3.54492009]
[1769333956188,0.713,2937.6,2936.9,5.6395366]
[1769333959088,0.713,2937.6,2937.0,0.85120871]
[1769333959888,0.713,2937.6,2937.1,0.001]
[1769333966490,0.713,2937.6,2937.1,5.6405366]
[1769333968391,0.713,2937.6,2937.2,0.85115075]
[1769333968563,0.713,2937.6,2937.2,1.84080072]
[1769333972608,0.002,2937.4,2937.2,1.84080072]
[1769333972801,0.715,2937.6,2937.2,1.84080072]
[1769333973311,0.41112999,2937.6,2937.2,8.2549297]
[1769333976117,0.41112999,2937.6,2937.2,0.98964997]
[1769333976329,0.41112999,2937.6,2937.1,0.85217373]
[1769333979322,0.41112999,2937.6,2937.1,7.26630271]
[1769333981419,0.002,2937.7,2937.1,7.26630271]
[1769333984499,0.002,2937.7,2937.3,0.001]
[1769333984699,0.002,2937.7,2937.3,6.41512898]
[1769333984900,0.002,2937.7,2937.3,7.14185925]
[1769333996530,0.002,2937.7,2937.5,0.001]
[1769334005145,0.002,2937.8,2937.5,0.001]
[1769334008115,0.002,2937.6,2937.5,0.001]
[1769334008444,0.002,2937.8,2937.5,0.001]
[1769334020464,0.002,2937.8,2937.7,0.001]
[1769334040672,0.74166466,2937.8,2937.7,0.001]
[1769334046990,0.002,2937.8,2937.7,0.001]
[1769334050607,7.48991896,2938.0,2937.7,0.001]
[1769334053475,0.7115961,2938.0,2937.7,0.001]
[1769334055994,0.7115961,2938.0,2937.9,0.001]
[1769334069306,6.46989797,2938.4,2937.9,0.001]
[1769334069509,0.713,2938.3,2937.9,0.001]
[1769334078525,6.46989797,2938.4,2937.9,0.001]
[1769334078713,0.713,2938.2,2937.9,0.001]
[1769334079096,0.002,2938.1,2937.9,0.001]
[1769334092329,0.002,2938.3,2938.0,6.91216757]
[1769334092543,0.713,2938.2,2938.1,7.60348433]
[1769334093623,0.713,2938.2,2938.1,0.69131676]
[1769334096239,0.713,2938.2,2938.1,7.27178667]
[1769334097821,0.002,2938.6,2938.1,7.27178667]
[1769334098142,0.713,2938.9,2938.4,6.58046991]
[1769334098446,0.713,2938.9,2938.5,0.65804699]
[1769334098944,0.713,2938.9,2938.5,7.2385169]
[1769334101244,0.713,2938.9,2938.5,0.65804699]
[1769334104629,0.002,2939.0,2938.5,0.65804699]
[1769334104854,0.713,2938.9,2938.6,0.72385169]
[1769334121379,0.713,2938.9,2938.4,6.58046991]
[1769334127284,0.713,2938.9,2938.6,0.001]
[1769334127672,0.713,2938.9,2938.6,6.90707615]
[1769334130886,0.002,2939.0,2938.6,6.90707615]
[1769334137207,0.002,2939.0,2938.6,0.001]
[1769334139878,6.8316854,2939.0,2938.6,0.001]
[1769334143402,0.002,2939.0,2938.6,0.001]
[1769334150109,0.002,2939.0,2938.8,0.001]
[1769334150306,0.002,2939.0,2938.6,0.001]
[1769334154498,0.002,2939.0,2938.6,0.74921014]
[1769334161920,0.002,2939.0,2938.8,0.001]
[1769334163119,0.715,2939.0,2938.8,0.001]
[1769334179344,0.002,2939.0,2938.8,0.001]
[1769334184129,7.11595738,2939.0,2938.8,0.001]
[1769334185747,0.002,2939.0,2938.8,0.001]
[1769334186349,0.002,2939.0,2938.6,0.001]
[1769334196538,0.002,2939.0,2938.6,0.75260384]
[1769334197548,0.002,2939.0,2938.8,0.001]
[1769334197748,0.002,2938.8,2938.6,0.001]
[1769334203543,0.002,2939.0,2938.6,0.001]
[1769334203874,0.002,2939.0,2938.6,7.51603838]
[1769334204052,0.002,2939.0,2938.6,8.26764222]
[1769334207179,0.002,2939.0,2938.6,0.75260384]
[1769334209402,0.002,2939.0,2938.8,0.001]
[1769334210446,0.00022498,2939.0,2938.8,0.001]
[1769334210970,6.90653214,2939.4,2938.8,0.001]
[1769334211371,6.90653214,2939.4,2938.6,0.001]
[1769334211372,6.98142831,2939.1,2938.6,0.001]
[1769334213278,6.90653214,2939.1,2938.6,0.001]
[1769334217572,0.713,2939.1,2938.6,7.2581134]